[Event "XVI Memorial Ezequiel Martin 2024"]
[Site "Mollet"]
[Date "2024.06.09"]
[Round "9.6"]
[White "Diaz Camallonga, Carles"]
[Black "Mompel Ferruz, Xavier"]
[Result "1-0"]
[ECO "E06"]
[WhiteElo "2478"]
[BlackElo "2279"]
[Annotator "TA"]
[PlyCount "67"]
[EventDate "2024.06.01"]
[EventType "swiss"]
[EventCountry "ESP"]
[SourceTitle "playchess.com"]
[Source "ChessBase"]
[SourceQuality "1"]
[TimeControl "900+5"]

{[%evp 11,67,12,23,15,23,10,31,30,23,-4,84,92,137,133,189,190,195,189,196,194,207,208,206,152,190,138,184,185,199,173,176,150,152,128,212,219,269,273,252,166,175,177,189,190,248,202,205,208,243,243,236,157,282,279,444,500,596,586]} 1. Nf3 {[%emt 0:00:02]} d5 {[%emt 0:00:01]} 2. d4 {[%emt 0:00:01]} Nf6 {[%emt 0:00:01]} 3. c4 {[%emt 0:00:01]} e6 {[%emt 0:00:02]} 4. g3 {[%emt 0:00:02]} Be7 {[%emt 0:15:21]} 5. Bg2 {[%emt 0:00:02]} O-O {[%emt 0:00:00]} 6. Qc2 {[%emt 0:00:02]} a6 {[%emt 0:00:00]} 7. Nbd2 {[%emt 0:00:50]} Nbd7 {[%emt 0:00:00]} 8. O-O {[%emt 0:00:08]} c5 {[%emt 0:00:00]} 9. dxc5 {[%emt 0:00:10] White is slightly better.} Nxc5 {[%emt 0:00:00]} 10. b3 {[%emt 0:00:02]} d4 {[%emt 0:00:00]} (10... b5 $11 {remains equal.}) 11. Ba3 $16 {[%emt 0:00:38] White stays focused until the end.} Qa5 {[%emt 0:00:00]} 12. Bb2 {[%emt 0:00:03]} e5 {[%emt 0:00:00]} (12... Bd7 $16 {was necessary.} 13. a3 (13. Bxd4 Bc6 $16) (13. Nxd4 Qb6 $16) 13... Bc6 14. Nxd4 (14. Bxd4 Ncd7 $16) 14... Bxg2 15. Kxg2 Ncd7) 13. Nxe5 $18 {[%emt 0:00:36]} Rd8 {[%emt 0:00:00]} 14. Ndf3 {[%emt 0:00:58]} Ne6 {[%emt 0:00:00]} 15. Rfd1 {[%emt 0:00:47]} Qb6 {[%emt 0:00:00]} 16. Rac1 {[%emt 0:00:20]} a5 {[%emt 0:01:00]} 17. Rb1 {[%emt 0:02:09]} Bc5 {[%emt 0:00:00]} 18. Ne1 {[%emt 0:00:40]} (18. Nd3 $18) 18... Rb8 {[%emt 0:00:00]} (18... Ng5 $16 {was called for.} 19. Qd2 h6) 19. N1d3 {[%emt 0:09:09]} Bd7 {[%emt 0:00:00]} 20. Nxc5 {[%emt 0:00:00]} Qxc5 {[%emt 0:00:00]} 21. Nd3 {[%emt 0:00:00]} Qc7 {[%emt 0:00:00]} 22. e3 {[%emt 0:00:00]} dxe3 {[%emt 0:00:00]} (22... Bc6 $16 {might work better.}) 23. Be5 {[%emt 0:00:00] This pair of bishops is nice.} ({But not} 23. fxe3 Qb6) 23... Qb6 {[%emt 0:00:00]} 24. Bxb8 {[%emt 0:00:00]} Rxb8 {[%emt 0:00:00]} 25. c5 {[%emt 0:00:00]} exf2+ {[%emt 0:00:00]} 26. Qxf2 {[%emt 0:00:00]} Qc7 {[%emt 0:00:00]} 27. Qe2 {[%emt 0:00:00]} Nxc5 {[%emt 0:00:00]} (27... Rd8 $142 28. Ne5 (28. Qe5 Qc8 $18) 28... Nxc5) 28. Qe5 {[%emt 0:00:00]} Qxe5 {[%emt 0:00:00]} 29. Nxe5 {[%emt 0:00:00] [#] aiming for Rbc1.} Bf5 {[%emt 0:00:00]} 30. Rbc1 b6 {[%emt 0:00:00]} 31. Nc4 {[%emt 0:00:00]} a4 {[%emt 0:00:00]} (31... Ncd7 $16 32. Nd6 Bg4) 32. Nxb6 {[%emt 0:00:00]} axb3 {[%emt 0:00:00]} (32... Nd3 {keeps fighting.}) 33. Rxc5 {[%emt 0:00:00]} Bc2 {[%emt 0:00:00]} 34. Re1 {[%emt 0:00:00] Weighted Error Value: White=0.19 (very precise) /Black=0.39.  Mistake:       	White=1     	Black=7      Inaccurate:     	White=3     	Black=1      OK:         	White=11    	Black=6      Best:        	White=2     	---} 1-0